Cogmind - Beta 10.2 @@@ ROGUE MODE // 2020.11.17 @ 21:04:53 // Halloween2020/ForbiddenLore Player: IAMCRAIG Result: Destroyed by as-70118 with Assembled Blade Performance ------------- Evolutions (0) 0 Regions Visited (2) 400 Robots Destroyed (21) 105 Value Destroyed (516) 516 Prototype IDs (3) 60 Alien Tech Used (0) 0 Bonus (0) 0 TOTAL SCORE: 1081 Bonus ------- None Cogmind --------- Core Integrity 0/250 Matter 300/300 Energy 93/100 System Corruption 0% Temperature Cool (52) Movement Treading (180) Ox1 Location -10/Mines Parts ------- > --- POWER (1) -------- Backup Power I > --- PROPULSION (2) --- Light Treads Wheel > --- UTILITY (2) ------ Large Storage Unit Large Storage Unit > --- WEAPON (2) ------- Small Laser Small Laser > --- INVENTORY (16) --- Ion Engine Light Treads Wheel Improved Heat Sink High-capacity Storage Unit High-capacity Battery (400) Improved Sensor Array Improved Signal Interpreter Targeting Computer ECM Suite Weapon Shielding Hardened Light Armor Plating Hardened Light Armor Plating Hardened Light Armor Plating Small Laser Light Assault Rifle Peak State ------------ > --- POWER ------------ Ion Engine > --- PROPULSION ------- Light Treads Wheel > --- UTILITY ---------- Improved Heat Sink High-capacity Storage Unit > --- WEAPON ----------- Medium Laser Small Laser > --- INVENTORY -------- Ion Engine Light Treads Wheel Large Storage Unit Large Storage Unit High-capacity Battery Improved Sensor Array Improved Signal Interpreter ECM Suite Weapon Shielding Hardened Light Armor Plating Small Laser [Rating: 10] Favorites ----------- Power Ion Engine Engine Ion Engine Propulsion Wheel Treads Light Treads Wheel Wheel Utility High-capacity Storage Unit Device Improved Heat Sink Storage High-capacity Storage Unit Protection Weapon Shielding Weapon Small Laser Energy Gun Small Laser Build | -11 -10 -10 ------- Run | Scr Mat Min Slots Evolved . | . . . Power . | . . . Propulsion . | . . . Utility . | . . . Weapon . | . . . Parts Attached 28 | 7 21 . Power 4 | 1 3 . Engine 4 | 1 3 . Core . | . . . Reactor . | . . . Propulsion 4 | 2 2 . Treads 3 | 1 2 . Leg . | . . . Wheel 1 | 1 . . Hover . | . . . Flight . | . . . Utility 9 | 2 7 . Device 1 | . 1 . Storage 7 | 2 5 . Processor . | . . . Hackware . | . . . Protection 1 | . 1 . Artifact . | . . . Weapon 11 | 2 9 . Energy Gun 11 | 2 9 . Energy Cannon . | . . . Ballistic Gun . | . . . Ballistic Cannon . | . . . Launcher . | . . . Special Weapon . | . . . Impact Weapon . | . . . Slashing Weapon . | . . . Piercing Weapon . | . . . Special Melee Weapon . | . . . Unidentified Prototypes . | . . . Parts Lost 3 | . 3 . Power . | . . . Propulsion . | . . . Utility . | . . . Weapon 3 | . 3 . Highest Loss Streak 2 | . 2 . Average Slot Usage (%) 98 | . 98 100 Engine 14 | . 14 14 Treads 13 | . 13 14 Wheel 14 | . 14 14 Device 4 | . 5 . Storage 19 | . 18 28 Protection 4 | . 4 . Energy Gun 27 | . 27 28 Naked Turns . | . . . Heaviest Build 41 | 15 41 35 Greatest Support 20 | 20 20 20 Greatest Overweight (x) 4 | 1 4 3 Average Overweight (x) 2 | . 2 2 Largest Inventory Capacity 18 | 8 18 16 Average Capacity 11 | 6 11 16 Most Carried 16 | 7 16 16 Average Carried 11 | 3 11 15 Final Capacity 16 | 8 16 16 Final Carried 16 | 7 16 16 Class Distribution -------------------- 78% | Mutant 21% | Scavenger-Mutant Dominant Class ---------------- Mutant | -10/Materials Mutant | -10/Mines Resources | -11 -10 -10 ----------- Run | Scr Mat Min Matter Collected 475 | 260 205 10 Remotely . | . . . Salvage Created 777 | 56 702 19 Parts 45 | 2 41 2 Haulers Intercepted 2 | . 2 . Recyclers Shooed . | . . . Parts Field Recycled . | . . . Retrieved Matter . | . . . Parts Self-Destructed . | . . . Prevented . | . . . Kills | -11 -10 -10 ------- Run | Scr Mat Min Combat Hostiles Destroyed 16 | . 15 1 Guns 15 | . 14 1 Classes Destroyed 5 | 1 4 . Hauler 2 | . 2 . Recycler 1 | 1 . . Watcher 2 | . 2 . Swarmer 4 | . 3 1 Grunt 12 | . 12 . Best Kill Streak 3 | 1 3 1 Combat Bots Only 3 | . 3 1 Max Kills in Single Turn 1 | 1 1 1 Gunslinging . | . . . Exploded . | . . . Melee . | . . . Uniques/NPCs Destroyed . | . . . Combat | -11 -10 -10 -------- Run | Scr Mat Min Damage Taken 849 | . 589 260 Core 258 | . 177 81 Absorbed by Shields . | . . . Core Remaining (%) 100 | 100 . . Volleys Fired 64 | 2 55 7 Largest 2 | 2 2 2 Hottest 100 | 100 100 80 Shots Fired 120 | 4 102 14 Gun 120 | 4 102 14 Cannon . | . . . Launcher . | . . . Special . | . . . Kinetic . | . . . Thermal 120 | 4 102 14 Explosive . | . . . Electromagnetic . | . . . Robot Hit Streak 19 | 4 19 6 Robot Miss Streak 3 | . 3 1 Penetration Max . | . . . Secondary Targets 5 | . 4 1 Max Gunslinging Chain 1 | . 1 1 Shots Hit Robots 89 | 4 75 10 Core Hits 40 | 2 35 3 Critical Hits . | . . . Critical Kills . | . . . Critical Parts Destroyed . | . . . Melee Attacks . | . . . Impact . | . . . Slashing . | . . . Piercing . | . . . Sneak Attacks . | . . . Combat Hostiles . | . . . Follow-up Attacks . | . . . Damage Inflicted 1082 | 48 948 86 Guns 1082 | 48 948 86 Cannons . | . . . Explosions . | . . . Melee . | . . . Ramming . | . . . Kinetic . | . . . Thermal 1082 | 48 948 86 Explosive . | . . . Electromagnetic . | . . . Impact . | . . . Slashing . | . . . Piercing . | . . . Highest Corruption . | . . . Average Corruption . | . . . Corruption Purged . | . . . Overload Shots . | . . . Overflow Damage . | . . . Projectiles . | . . . Explosions . | . . . Melee . | . . . Knockbacks . | . . . Impact . | . . . Kinetic . | . . . Secondary . | . . . Self-Inflicted Damage . | . . . Shots . | . . . Rammed . | . . . Targets Rammed . | . . . Kicked . | . . . Crushed . | . . . Highest Temperature 269 | 78 269 52 Average Temperature 74 | 43 80 22 Received Heat Transfer 294 | . 294 . Siege Activations . | . . . Robots Corrupted . | . . . Combat Hostiles . | . . . Parts Fried . | . . . Impact Corruptions . | . . . Robots Melted 1 | . 1 . Combat Hostiles 1 | . 1 . Parts Melted 6 | 1 5 . Heat Transferred 2899 | 148 2551 200 Parts Sabotaged . | . . . Parts Stolen . | . . . Parts Stripped . | . . . Power Chain Reactions . | . . . Missiles Intercepted . | . . . Alert | -11 -10 -10 ------- Run | Scr Mat Min Peak Influence 294 | 5 294 23 Initial 3 | . 3 3 Average 124 | 1 137 19 Maximum Alert Level 1 | . 1 . Low Security (%) 82 | 100 80 100 Level 1 17 | . 19 . Level 2 . | . . . Level 3 . | . . . Level 4 . | . . . Level 5 . | . . . High Security . | . . . Max Security . | . . . Squads Dispatched 3 | . 3 . Investigation 2 | . 2 . Extermination . | . . . Reinforcement 1 | . 1 . Assault . | . . . Garrison . | . . . Intercept . | . . . Construction Impeded . | . . . Haulers Reinforced . | . . . Stealth | -11 -10 -10 --------- Run | Scr Mat Min Distress Signals 1 | . 1 . Communications Jammed . | . . . Distress Signals . | . . . Times Spotted 34 | . 26 8 Peak Tracking Total 5 | . 3 5 Tactical Retreats . | . . . Traps | -11 -10 -10 ------- Run | Scr Mat Min Traps Triggered 1 | . 1 . Indirectly . | . . . Trap Hack Attempts . | . . . Triggered . | . . . Disarmed . | . . . Reprogrammed . | . . . Reused . | . . . Traps Extracted . | . . . Installed . | . . . Triggered . | . . . Machines | -11 -10 -10 ---------- Run | Scr Mat Min Machines Disabled . | . . . Max in Single Turn . | . . . Machines Sabotaged . | . . . Garrisons Compromised . | . . . Overloaded Fab Kills . | . . . Fab Network Shutdowns . | . . . Hacking | -11 -10 -10 --------- Run | Scr Mat Min Machines Accessed 10 | . 10 . Terminals 7 | . 7 . Fabricators . | . . . Repair Stations 1 | . 1 . Recycling Units 2 | . 2 . Scanalyzers . | . . . Garrison Access . | . . . Total Hacks 34 | . 34 . Successful 24 | . 24 . Failed 10 | . 10 . Catastrophic . | . . . Database Lockouts . | . . . Manual 15 | . 15 . Terminals 24 | . 24 . Fabricators . | . . . Repair Stations 5 | . 5 . Recycling Units 5 | . 5 . Scanalyzers . | . . . Garrison Access . | . . . Terminal Hacks 9 | . 9 . Robot Analysis 2 | . 2 . Prototype ID Bank 2 | . 2 . Alert Level 1 | . 1 . Locate Traps 1 | . 1 . Hauler Manifests 1 | . 1 . Zone Layout 2 | . 2 . Fabricator Hacks . | . . . Repair Station Hacks 5 | . 5 . Scan Component 2 | . 2 . Repair 2 | . 2 . Refit 1 | . 1 . Recycling Unit Hacks 2 | . 2 . Report Inventory 2 | . 2 . Scanalyzer . | . . . Garrison Access Hacks . | . . . Unauthorized Hacks 8 | . 8 . Terminals 6 | . 6 . Track 1 | . 1 . Botnet 5 | . 5 . Fabricators . | . . . Repair Stations . | . . . Recycling Units 2 | . 2 . Reject 1 | . 1 . Mask 1 | . 1 . Scanalyzers . | . . . Garrison Access . | . . . Data Cores Recovered . | . . . Used . | . . . Hacking Detections 9 | . 9 . Full Trace Events 1 | . 1 . Feedback Events . | . . . Feedback Blocked . | . . . Robot Schematics Acquired . | . . . Robots Built . | . . . Matter . | . . . Time . | . . . Total Robot Build Rating . | . . . Part Schematics Acquired . | . . . Parts Built . | . . . Matter . | . . . Time . | . . . Total Part Build Rating . | . . . Parts Repaired 2 | . 2 . Time 52 | . 52 . Parts Recycled . | . . . Recycled Matter . | . . . Retrieved Matter . | . . . Retrieved Components . | . . . Parts Scanalyzed . | . . . Part Schematics Acquired . | . . . Parts Damaged . | . . . Bothacking | -11 -10 -10 ------------ Run | Scr Mat Min Used RIF Installer . | . . . Robots Hacked . | . . . Non-combat . | . . . Combat . | . . . Robot Hacks Applied . | . . . Relay Couplers Released . | . . . Robots Rewired . | . . . Allies Hacked . | . . . Hacks Repelled . | . . . Allies | -11 -10 -10 -------- Run | Scr Mat Min Total Allies 1 | . . 1 Largest Group 1 | . . 1 Highest-Rated Group 31 | . . 31 Highest-Rated Ally 31 | . . 31 Total Orders . | . . . Ally Attacks 3 | . . 3 Total Damage 42 | . . 42 Kills 2 | . . 2 Allies Corrupted . | . . . Allies Melted . | . . . Intel | -11 -10 -10 ------- Run | Scr Mat Min Robot Analysis Total 2 | . 2 . Derelict Logs Recovered . | . . . Drone Launches . | . . . Drone Recoveries . | . . . Exploration | -11 -10 -10 ------------- Run | Scr Mat Min Turns Passed 1361 | 70 1221 70 Spaces Moved 850 | 55 759 36 Core 6 | 6 . . Treads 159 | 1 148 10 Legs . | . . . Wheels 685 | 48 611 26 Hover . | . . . Flight . | . . . Fastest Speed 50 | 50 90 110 Average Speed 118 | 84 120 129 Slowest Speed 180 | 160 180 180 Overloaded Moves . | . . . Propulsion Burnouts . | . . . Robots Hopped . | . . . Cave-ins Triggered . | . . . Exploration Rate (%) 38 | 4 89 23 Regions Visited 2 Branch Regions 1 Pre-discovered Areas 1 | . . 1 Known Exits Taken . | . . . Unknown Exits Taken 2 | 1 1 . Scrap Searched . | . . . Spaces Dug . | . . . Terrain Destroyed . | . . . Melee . | . . . Projectile . | . . . AOE . | . . . Terrain Rammed . | . . . Walls Destroyed . | . . . Machines Disabled . | . . . Actions | -11 -10 -10 --------- Run | Scr Mat Min Total 1085 | 70 968 47 Wait 97 | . 95 2 Move 848 | 54 758 36 Hop . | . . . Pick Up 25 | 7 17 1 Fast Attach 11 | 7 4 . Attach 1 | . 1 . Detach 1 | . 1 . Swap 16 | . 16 . Drop 22 | . 21 1 Fire 64 | 2 55 7 Melee . | . . . Ram . | . . . Kick . | . . . Crush . | . . . Escape Stasis . | . . . Rewire . | . . . Trap . | . . . Miscellaneous . | . . . Route ------- -11/Scrapyard -10/Materials (discovered 3 exits: [*Mat x2] / [*Min]) -10/Mines History --------- Turn | Location | Event 13 | -11/Scrapyard | Discovered new exit (range 14) 71 | -11/Scrapyard | Entered Materials 322 | -10/Materials | Core integrity fell below 50% 346 | -10/Materials | Discovered new exit (range 15) 351 | -10/Materials | Build established: Mutant 439 | -10/Materials | Discovered new exit (range 9) 692 | -10/Materials | Discovered new exit (range 15) 1088 | -10/Materials | Repaired Weapon Shielding 1115 | -10/Materials | Repaired Lgt. Treads 1292 | -10/Materials | Entered Mines 1297 | -10/Mines | Escorted by a lone wolf Derelict 1297 | -10/Mines | Core integrity fell below 20% 1299 | -10/Mines | Met a Derelict bent on vengeance 1315 | -10/Mines | Assembled infested the area 1317 | -10/Mines | Learned location of Storage (-9) 1362 | -10/Mines | Destroyed by as-70118 with Assembled Blade Last Messages --------------- these Unaware!" 01293_ S-10 Pest: "SECOND INTRUDER APPROACHING. ELIMINATE." 01293_ S-10 Pest destroyed. 01295_ Switching to secondary target: S-10 Pest. 01296_ S-10 Pest destroyed. 01297_ HK-LC5(g): "Well, at least you make a good diversion. I'll return the favor and help see you out of these parts." 01300_ Acquired 10 matter. 01309_ Dropped Sml. Laser. 01310_ Acquired Lgt. Assault Rifle. 01315_ ALERT: Infestation in the mines, dispatching Demolisher response squad. 01317_ HK-LC5(g): "While you're wandering around here, I suggest you avoid Complex 0b10 Storage. Security there is tighter since Warlord's second failed attempt to raid it." World map updated: -9/Storage. 01351_ as-62166 destroyed. 01353_ as-17736 destroyed. 01354_ HK-LC5(g): "Mission, incomplete...*fzzt*" 01354_ HK-LC5(g) destroyed. Map ----- +----------------------------------------------------+ | | | ???????????????????????????????????????????? | | ???????????????????????????????????????????? | | ???????????????????????????????####????????? | | ?????????????????????????????### [##???????? | | ????????????????????????????##*%= ##??????? | | ????????????????????????#####%%= ##?????? | | ????????????????????????? # * ##????? | | ????????????????????????? ## #????? | | ?????????????????????????# ### #????? | | ?????????????????????????# #?## ##????? | | ?????????????????????????# #??# ##?????? | | ????????????????????????## ##?# #??????? | | ????????????????????????# #?# ##??????? | | ????????????????????????# #?# #???????? | | ????????????????????????# ### #???????? | | ????????????????????????# ##???????? | | ????????????????????????## #????????? | | ?????????????????????????# #######????????? | | ???????????##????????????# ##?????????????? | | ??????????## ##?????????# ##??????###???? | | ??????????# ##??????# ##### #???? | | ?????????? ##???## #??? | | ?????????# < #?## #??? | | ????????? ##a #?? | | ???????? =a@ #?? | | ???????? %%## #?? | | ???????? a#### ??? | | ???????? #???# #??? | | ?????????# %????# #####??? | | ?????????## |=! *????? ##??????? | | ??????????# !%* ???? #???????? | | ?????????? !%= ????? #???????? | | ?????????? = ???? ##???????? | | ??????????# ????####????????? | | ???????????## ##???????????????? | | ????????????## ## ##????????????????? | | ?????????????## #?## ##?????????????????? | | ??????????????# ???###???????????????????? | | ??????????????# ??????????????????????????? | | ???????????????????????????????????????????? | | ???????????????????????????????????????????? | | ???????????????????????????????????????????? | | ???????????????????????????????????????????? | | ???????????????????????????????????????????? | | ???????????????????????????????????????????? | | ???????????????????????????????????????????? | | ???????????????????????????????????????????? | | ???????????????????????????????????????????? | | ???????????????????????????????????????????? | +----------------------------------------------------+ Best States ------------- Heat Dissipation 39 Energy Generation 10 Energy Capacity 250 Matter Stores 300 Matter Capacity 300 Sight Range 16 Terrain Scan Density 10 Weapon Shielding 33 Evasion (%) 44 Recoil Reduction 1 Item Schematics ----------------- None Robot Schematics ------------------ None Fabricated ------------ Nothing Alien Tech Used ----------------- None Achievements -------------- None Challenges ------------ None Game ------ Seed GravmagFactoryScrap Manual? 0 Play Time 00:17:25 Cumulative 217.3 hours Start 2020.11.17 @ 20:45:17 End 2020.11.17 @ 21:04:53 Sessions 1 Manual Loads 0 Difficulty Rogue Special Mode Halloween2020/ForbiddenLore Game No. 79 Rogue 79 Adventurer 0 Explorer 0 Win Type - Total 2 Types 1/0/1/0/0/0/0/0/0 Lore% 66 Gallery% 78 Achievement% 67 Wizard Run 0 Options --------- ASCII 1 Keyboard 1 Movement Numpad Keybinds 0 Fullscreen 1 Font 16/SmallcapsGlow Map View 75x55 Tactical HUD 1 Map Filters NONE Filters NONE Steam 1 RUN: dde19a51-9b5d-4df2-9589-177ee6f3ebec